[Event "FIDE WCCC G12 2018"]
[Site "Santiago de Compostela"]
[Date "2018.11.05"]
[Round "2"]
[White "Zhou, Lepu Coco"]
[Black "Karmanova, Olga Dm."]
[Result "1-0"]
[ECO "B40"]
[WhiteElo "1617"]
[BlackElo "1819"]
[Annotator "NA RC"]
[PlyCount "87"]
[EventDate "2018.11.04"]
[EventType "swiss"]
[EventCountry "ESP"]
[SourceTitle "playchess.com"]
[Source "ChessBase"]
[SourceQuality "1"]
[TimeControl "40/5400+30:1800+30"]

{[%evp 8,87,18,32767,76,32767,85,34,32767,26,39,31,36,18,31,32,75,35,35,9,25,-10,105,40,47,-7,-13,-14,-17,-40,-25,-26,-16,-25,-1,-16,0,-10,0,-17,0,0,0,0,0,-68,-44,-60,-42,-40,-27,-41,-16,-19,39,46,121,123,123,107,199,210,172,175,165,165,553,637,571,702,738,869,539,713,773,740,834,824,781,1599,1125,856]} 1. e4 {[%emt 0:00:00]} c5 {[%emt 0:00:00]} 2. Nf3 {[%emt 0:00:00]} e6 {[%emt 0:00:00]} 3. c4 {[%emt 0:00:00]} Nc6 {[%emt 0:00:07]} 4. Nc3 {[%emt 0:00:00]} Nf6 {[%emt 0:00:21]} 5. Be2 {[%emt 0:00:04]} Nd4 {[%emt 0:04:47] LiveBook: 7 Games A34: Englische Eröffnung (Symmetrische Variante)} (5... d5 $11) (5... e5 6. d3 d6 7. O-O g6 8. a3 Bg7 9. b4 b6 10. Nd5 O-O 11. Bg5 Be6 12. Qd2 cxb4 13. axb4 {½-½ (34) Rakhmanov,A (2634)-Sjugirov,S (2654) Sochi 2018}) 6. e5 {[%emt 0:02:33]} Ng8 {[%emt 0:02:52]} 7. O-O $146 {[%emt 0:02:27]} ({Vorgänger:} 7. Nxd4 cxd4 8. Nb5 Bc5 9. Qa4 f6 10. exf6 Nxf6 11. b4 Be7 12. Nxd4 O-O 13. O-O {1-0 (40) Raahul,V (2233)-Nguyen,V (2451) Mumbai 2018}) 7... Ne7 {[%emt 0:00:16]} 8. d3 {[%emt 0:04:26]} Nec6 {[%emt 0:00:34]} 9. Nxd4 {[%emt 0:03:25]} cxd4 {[%emt 0:01:12]} 10. Nb5 {[%emt 0:01:36]} Nxe5 {[%emt 0:01:48]} 11. Nxd4 {[%emt 0:00:42]} d5 {[%emt 0:05:43]} 12. Qb3 {[%emt 0:03:55]} Nc6 {[%emt 0:06:36]} 13. Nxc6 {[%emt 0:01:59]} bxc6 {[%emt 0:00:12]} 14. Bf3 {[%emt 0:01:07]} Qc7 {[%emt 0:01:40] [#]} (14... Bd6 $11 {remains equal.}) 15. cxd5 {[%emt 0:02:25]} (15. Qc3 $1 $16) 15... cxd5 {[%emt 0:00:17]} 16. Be3 {[%emt 0:00:31]} Bd6 {[%emt 0:03:00]} 17. h3 {[%emt 0:01:22]} O-O {[%emt 0:00:24]} 18. Rac1 {[%emt 0:01:31]} Qe7 {[%emt 0:00:33]} 19. Qc3 {[%emt 0:02:23]} Bb7 {[%emt 0:01:31]} 20. Qd2 {[%emt 0:04:02]} d4 {[%emt 0:01:40]} 21. Bg5 {[%emt 0:00:45]} f6 {[%emt 0:01:05]} 22. Bxb7 {[%emt 0:01:00]} Qxb7 {[%emt 0:00:25]} 23. Bh4 {[%emt 0:02:59]} Rab8 {[%emt 0:00:27]} 24. Qe2 {[%emt 0:01:44]} e5 {[%emt 0:00:33]} 25. b3 {[%emt 0:00:55]} Bb4 {[%emt 0:00:53]} 26. f4 {[%emt 0:03:15]} (26. Rc4 $11) 26... exf4 {[%emt 0:00:53]} 27. Qe6+ {[%emt 0:07:36]} Qf7 {[%emt 0:01:13]} 28. Qxf7+ {[%emt 0:01:55]} Rxf7 {[%emt 0:00:10]} 29. Rc4 {[%emt 0:01:28]} Bc3 {[%emt 0:00:54]} 30. Be1 {[%emt 0:00:14]} Bb2 {[%emt 0:01:35]} (30... g5 $11) 31. Rxf4 {[%emt 0:01:51]} Ba3 {[%emt 0:00:21]} ({Better is} 31... Re8 $14 32. Bb4 Rb7) 32. Rfxd4 {[%emt 0:01:37]} Re8 {[%emt 0:02:30]} 33. Bf2 {[%emt 0:01:39]} Re2 {[%emt 0:00:57]} (33... Rb7 $16 {might work better.}) 34. Rd8+ {[%emt 0:00:19]} Rf8 {[%emt 0:00:36]} 35. Rxf8+ {[%emt 0:00:07]} Kxf8 {[%emt 0:00:58]} 36. Ra4 {[%emt 0:00:57]} Rxa2 $2 {[%emt 0:00:18] [#]} (36... Be7 37. Kf1 (37. Bxa7 Bd6 $16) (37. Rxa7 Rc2 $18) 37... Rb2 38. Bxa7 (38. Rxa7 Rxf2+ 39. Kxf2 Bc5+ 40. Kf3 Bxa7 $15) 38... Kf7) 37. Rxa3 $1 {[%emt 0:00:13]} Rxa3 {[%emt 0:01:35]} 38. Bc5+ {[%emt 0:00:05]} Kf7 {[%emt 0:00:07]} 39. Bxa3 {[%emt 0:00:05]} Ke6 {[%emt 0:00:22]} 40. Kf2 {[%emt 0:00:00]} Kd5 {[%emt 0:00:00]} 41. Ke3 {[%emt 0:00:17]} a6 {[%emt 0:00:43]} 42. Bf8 {[%emt 0:00:38]} g6 {[%emt 0:00:17]} 43. Bg7 {[%emt 0:00:10]} Ke5 {[%emt 0:00:29]} 44. g4 $18 {[%emt 0:00:49]} 1-0

[Event "FIDE WCCC G12 2018"]
[Site "Santiago de Compostela"]
[Date "2018.11.05"]
[Round "2"]
[White "Enkhsaran, Batsaikhan"]
[Black "Starosta, Martyna"]
[Result "1/2-1/2"]
[ECO "A48"]
[WhiteElo "1614"]
[BlackElo "1790"]
[Annotator "NA"]
[PlyCount "130"]
[EventDate "2018.11.04"]
[EventType "swiss"]
[EventCountry "ESP"]
[SourceTitle "playchess.com"]
[Source "ChessBase"]
[SourceQuality "1"]
[TimeControl "40/5400+30:1800+30"]

1. d4 {[%emt 0:00:00]} Nf6 {[%emt 0:00:00]} 2. Nf3 {[%emt 0:00:00]} g6 {[%emt 0:00:00]} 3. b3 {[%emt 0:00:00]} Bg7 {[%emt 0:01:55]} 4. Bb2 {[%emt 0:00:40]} d5 {[%emt 0:01:40]} 5. c4 {[%emt 0:01:21]} c6 {[%emt 0:02:31]} 6. g3 {[%emt 0:00:30]} O-O {[%emt 0:02:11]} 7. Bg2 {[%emt 0:00:44]} Nbd7 {[%emt 0:02:13]} 8. O-O {[%emt 0:00:38]} Ne4 {[%emt 0:02:55]} 9. Nbd2 {[%emt 0:02:46]} f5 {[%emt 0:03:34]} 10. Qc2 {[%emt 0:05:24]} Ndf6 {[%emt 0:02:13]} 11. Ne5 {[%emt 0:03:52]} Be6 {[%emt 0:04:37]} 12. Rad1 {[%emt 0:14:00]} Nd7 {[%emt 0:04:52]} 13. Nd3 {[%emt 0:05:26]} g5 {[%emt 0:07:58]} 14. Bh3 {[%emt 0:04:46]} Rf6 {[%emt 0:06:00]} 15. Nxe4 {[%emt 0:02:21]} fxe4 {[%emt 0:02:34]} 16. Bxe6+ {[%emt 0:01:43]} Rxe6 {[%emt 0:00:28]} 17. Nc5 {[%emt 0:04:03]} Rh6 {[%emt 0:06:19]} 18. f3 {[%emt 0:03:57]} e3 {[%emt 0:05:06]} 19. Bc1 {[%emt 0:09:54]} Nxc5 {[%emt 0:06:18]} 20. dxc5 {[%emt 0:00:28]} Re6 {[%emt 0:01:09]} 21. cxd5 {[%emt 0:04:57]} cxd5 {[%emt 0:00:37]} 22. Qf5 {[%emt 0:00:29]} Re5 {[%emt 0:01:21]} 23. Qg4 {[%emt 0:01:57]} Qf8 {[%emt 0:03:32]} 24. Bb2 {[%emt 0:02:15]} Rf5 {[%emt 0:00:50]} 25. Bxg7 {[%emt 0:00:29]} Kxg7 {[%emt 0:00:20]} 26. Qd4+ {[%emt 0:00:28]} Qf6 {[%emt 0:01:49]} 27. Qxe3 {[%emt 0:01:46]} Rd8 {[%emt 0:03:27]} 28. b4 {[%emt 0:07:08]} Re5 {[%emt 0:04:36]} 29. Qd3 {[%emt 0:02:36]} d4 {[%emt 0:03:46]} 30. Qc4 {[%emt 0:05:39]} a6 {[%emt 0:03:37]} 31. Rd2 {[%emt 0:08:46]} Re3 {[%emt 0:00:47]} 32. Rc1 {[%emt 0:02:25]} Qe5 {[%emt 0:03:26]} 33. a4 {[%emt 0:02:54]} Ra3 {[%emt 0:05:14]} 34. Rd3 {[%emt 0:00:58]} Rxa4 {[%emt 0:02:14]} 35. Kf2 {[%emt 0:00:58]} a5 {[%emt 0:01:15]} 36. Rb1 {[%emt 0:00:46]} Rd5 {[%emt 0:02:02]} 37. Qb5 {[%emt 0:00:38]} Ra2 {[%emt 0:01:20]} 38. Re1 {[%emt 0:00:37]} axb4 {[%emt 0:02:18]} 39. Qxb4 {[%emt 0:00:18]} Rxc5 {[%emt 0:01:10]} 40. Rxd4 {[%emt 0:00:00]} Rb5 {[%emt 0:00:00]} 41. Qc4 {[%emt 0:01:05]} Rc2 {[%emt 0:07:46]} 42. Qxc2 {[%emt 0:05:00]} Qxd4+ {[%emt 0:00:07]} 43. Kf1 {[%emt 0:00:55]} Rb2 {[%emt 0:03:29]} 44. Qf5 {[%emt 0:02:47]} Qe3 {[%emt 0:03:47]} 45. f4 {[%emt 0:02:08]} h6 {[%emt 0:01:04]} 46. fxg5 {[%emt 0:02:40]} hxg5 {[%emt 0:00:41]} 47. Qg4 {[%emt 0:02:06]} Rb6 {[%emt 0:03:07]} 48. Kg2 {[%emt 0:01:46]} Rf6 {[%emt 0:02:26]} 49. Rf1 {[%emt 0:01:24]} Rxf1 {[%emt 0:01:24]} 50. Kxf1 {[%emt 0:00:12]} Kf6 {[%emt 0:02:26]} 51. h4 {[%emt 0:01:46]} gxh4 {[%emt 0:00:43]} 52. Qxh4+ {[%emt 0:00:30]} Qg5 {[%emt 0:00:37]} 53. Qd4+ {[%emt 0:00:49]} Kg6 {[%emt 0:01:06]} 54. Kg2 {[%emt 0:00:50]} b5 {[%emt 0:00:59]} 55. Qe4+ {[%emt 0:00:54]} Kf6 {[%emt 0:00:40]} 56. Qc6+ {[%emt 0:02:03]} Kf7 {[%emt 0:01:10]} 57. Qf3+ {[%emt 0:00:41]} Kg7 {[%emt 0:01:43]} 58. Qc3+ {[%emt 0:00:42]} Kh7 {[%emt 0:01:11]} 59. Qc2+ {[%emt 0:01:09]} Kh6 {[%emt 0:00:35]} 60. Qc6+ {[%emt 0:00:32]} Kg7 {[%emt 0:01:34]} 61. Qc3+ {[%emt 0:00:35]} Kg8 {[%emt 0:00:35]} 62. Qb3+ {[%emt 0:00:42]} Kf8 {[%emt 0:00:43]} 63. Qf3+ {[%emt 0:00:31]} Kg7 {[%emt 0:01:00]} 64. Qc3+ {[%emt 0:00:58]} Kg6 {[%emt 0:00:40]} 65. Qc6+ {[%emt 0:00:50]} Kf7 {[%emt 0:01:01]} 1/2-1/2

[Event "FIDE WCCC G12 2018"]
[Site "Santiago de Compostela"]
[Date "2018.11.05"]
[Round "2"]
[White "Pang, Ashley"]
[Black "Munkhzul, Davaakhuu"]
[Result "0-1"]
[ECO "B40"]
[WhiteElo "1604"]
[BlackElo "1781"]
[Annotator "NA RC"]
[PlyCount "80"]
[EventDate "2018.11.04"]
[EventType "swiss"]
[EventCountry "ESP"]
[SourceTitle "playchess.com"]
[Source "ChessBase"]
[SourceQuality "1"]
[TimeControl "40/5400+30:1800+30"]

1. e4 {[%emt 0:00:00]} c5 {[%emt 0:00:00]} 2. Nf3 {[%emt 0:00:00]} e6 {[%emt 0:00:00]} 3. d4 {[%emt 0:00:00]} cxd4 {[%emt 0:00:00]} 4. Nxd4 {[%emt 0:00:00]} Nf6 {[%emt 0:00:10]} 5. Nc3 {[%emt 0:00:06]} Nc6 {[%emt 0:00:07]} 6. Ndb5 {[%emt 0:00:07]} Bb4 {[%emt 0:00:14]} 7. a3 {[%emt 0:00:08]} Bxc3+ {[%emt 0:00:10]} 8. Nxc3 {[%emt 0:00:05]} d5 {[%emt 0:00:51]} 9. exd5 {[%emt 0:00:48]} exd5 {[%emt 0:00:11]} 10. Bd3 {[%emt 0:00:13]} O-O {[%emt 0:00:55]} 11. O-O {[%emt 0:00:14]} Bg4 {[%emt 0:01:03]} 12. f3 {[%emt 0:00:55]} Be6 {[%emt 0:00:50]} 13. Bg5 {[%emt 0:01:12]} Ne5 {[%emt 0:19:15]} 14. Bxf6 {[%emt 0:22:54]} Qxf6 {[%emt 0:00:20]} 15. f4 {[%emt 0:05:09]} Ng4 {[%emt 0:13:15]} 16. Qf3 {[%emt 0:09:17]} d4 {[%emt 0:05:01]} 17. Ne2 {[%emt 0:07:51]} Ne3 {[%emt 0:02:37]} 18. Rfe1 {[%emt 0:04:45]} Bd5 {[%emt 0:01:00]} 19. Be4 {[%emt 0:03:38]} Bxe4 {[%emt 0:00:02]} 20. Qxe4 {[%emt 0:00:21]} Rfe8 {[%emt 0:00:01]} 21. Qd3 {[%emt 0:03:50]} Qc6 {[%emt 0:00:14]} 22. Qxe3 {[%emt 0:09:21]} Rxe3 {[%emt 0:00:18]} 23. Nxd4 {[%emt 0:00:07]} Rxe1+ {[%emt 0:00:14]} 24. Rxe1 {[%emt 0:00:06]} Qb6 {[%emt 0:00:09]} 25. c3 {[%emt 0:00:34]} Qxb2 {[%emt 0:00:14]} 26. Nf5 {[%emt 0:01:50]} Qxc3 {[%emt 0:00:26]} 27. Re3 {[%emt 0:00:49]} Qc5 {[%emt 0:00:08]} 28. Ne7+ {[%emt 0:00:43]} Kf8 {[%emt 0:00:03]} 29. Kf2 {[%emt 0:00:14]} Re8 {[%emt 0:00:10]} 30. Kf3 {[%emt 0:00:32]} Rxe7 {[%emt 0:00:11]} 31. Rd3 {[%emt 0:00:09]} Qc6+ {[%emt 0:00:06]} 32. Kg3 {[%emt 0:00:20]} Qg6+ {[%emt 0:00:10]} 33. Kh4 {[%emt 0:00:12]} Qxd3 {[%emt 0:00:10]} 34. g4 {[%emt 0:00:10]} Re3 {[%emt 0:00:17]} 35. g5 {[%emt 0:00:55]} Rh3+ {[%emt 0:00:03]} 36. Kg4 {[%emt 0:00:07]} Qf3+ {[%emt 0:00:06]} 37. Kf5 {[%emt 0:00:08]} Qd5+ {[%emt 0:00:11]} 38. Kg4 {[%emt 0:00:12]} h5+ {[%emt 0:00:25]} 39. Kxh3 {[%emt 0:00:13]} Qf3+ {[%emt 0:00:06]} 40. Kh4 {[%emt 0:00:00]} Qg4# {[%emt 0:00:00]} 0-1

[Event "FIDE WCCC G12 2018"]
[Site "Santiago de Compostela"]
[Date "2018.11.05"]
[Round "2"]
[White "Ke, Rianne"]
[Black "Sheikh, Anum"]
[Result "1/2-1/2"]
[ECO "B40"]
[WhiteElo "1600"]
[BlackElo "1770"]
[Annotator "NA RC"]
[PlyCount "96"]
[EventDate "2018.11.04"]
[EventType "swiss"]
[EventCountry "ESP"]
[SourceTitle "playchess.com"]
[Source "ChessBase"]
[SourceQuality "1"]
[TimeControl "40/5400+30:1800+30"]

1. e4 {[%emt 0:00:00]} c5 {[%emt 0:00:00]} 2. Nf3 {[%emt 0:00:00]} e6 {[%emt 0:00:00]} 3. d4 {[%emt 0:00:00]} cxd4 {[%emt 0:00:00]} 4. Nxd4 {[%emt 0:00:00]} Nf6 {[%emt 0:00:00]} 5. Bd3 {[%emt 0:00:10]} d6 {[%emt 0:02:40]} 6. O-O {[%emt 0:00:48]} Be7 {[%emt 0:00:39]} 7. c4 {[%emt 0:00:32]} O-O {[%emt 0:01:09]} 8. Nc3 {[%emt 0:00:55]} a6 {[%emt 0:00:26]} 9. Qe2 {[%emt 0:01:56]} Nbd7 {[%emt 0:01:31]} 10. f4 {[%emt 0:01:53]} Qc7 {[%emt 0:00:56]} 11. Be3 {[%emt 0:01:00]} Nc5 {[%emt 0:02:44]} 12. Bc2 {[%emt 0:02:59]} b6 {[%emt 0:03:42]} 13. b4 {[%emt 0:02:09]} Ncd7 {[%emt 0:01:56]} 14. Rac1 {[%emt 0:03:18]} Bb7 {[%emt 0:06:51]} 15. Bd3 {[%emt 0:02:24]} Qd8 {[%emt 0:05:47]} 16. a3 {[%emt 0:08:20]} Rc8 {[%emt 0:02:36]} 17. f5 {[%emt 0:01:22]} e5 {[%emt 0:03:44]} 18. Nb3 {[%emt 0:01:17]} Re8 {[%emt 0:13:17]} 19. g4 {[%emt 0:10:15]} h6 {[%emt 0:04:20]} 20. Nd5 {[%emt 0:06:20]} Nxd5 {[%emt 0:03:01]} 21. cxd5 {[%emt 0:02:29]} Nb8 {[%emt 0:09:00]} 22. Rxc8 {[%emt 0:05:03]} Bxc8 {[%emt 0:00:27]} 23. Qd2 {[%emt 0:03:42]} Kh7 {[%emt 0:01:49]} 24. Rf3 {[%emt 0:02:19]} Rh8 {[%emt 0:10:30]} 25. Nc1 {[%emt 0:05:22]} Kg8 {[%emt 0:04:27]} 26. Bf1 {[%emt 0:08:50]} Nd7 {[%emt 0:02:03]} 27. Qc2 {[%emt 0:03:45]} Bb7 {[%emt 0:01:24]} 28. Rg3 {[%emt 0:04:11]} Bh4 {[%emt 0:04:16]} 29. Rg2 {[%emt 0:01:13]} Be7 {[%emt 0:01:23]} 30. Qc3 {[%emt 0:01:03]} Nf6 {[%emt 0:01:16]} 31. Qd3 {[%emt 0:06:01]} Ne8 {[%emt 0:00:29]} 32. Ne2 {[%emt 0:00:49]} Bg5 {[%emt 0:01:00]} 33. Nc3 {[%emt 0:03:32]} b5 {[%emt 0:06:10]} 34. a4 {[%emt 0:01:47]} bxa4 {[%emt 0:01:43]} 35. Nxa4 {[%emt 0:00:11]} Nc7 {[%emt 0:02:27]} 36. Bb6 {[%emt 0:01:31]} Qd7 {[%emt 0:00:08]} 37. Bxc7 {[%emt 0:02:28]} Qxc7 {[%emt 0:00:15]} 38. Rc2 {[%emt 0:00:35]} Qb8 {[%emt 0:00:45]} 39. Qc3 {[%emt 0:03:01]} Bd8 {[%emt 0:00:16]} 40. Qe3 {[%emt 0:00:00]} Kh7 {[%emt 0:00:00]} 41. Bd3 {[%emt 0:13:19]} Re8 {[%emt 0:10:00]} 42. Qf2 {[%emt 0:03:33]} Bc8 {[%emt 0:01:08]} 43. Qd2 {[%emt 0:05:49]} Bd7 {[%emt 0:01:16]} 44. Nb2 {[%emt 0:00:35]} Qa7+ {[%emt 0:00:33]} 45. Kg2 {[%emt 0:00:52]} Bg5 {[%emt 0:00:18]} 46. Qe2 {[%emt 0:00:46]} Rb8 {[%emt 0:02:17]} 47. Bxa6 {[%emt 0:04:23]} Rxb4 {[%emt 0:00:16]} 48. Bd3 {[%emt 0:02:24]} Qd4 {[%emt 0:06:10]} 1/2-1/2

[Event "FIDE WCCC G12 2018"]
[Site "Santiago de Compostela"]
[Date "2018.11.05"]
[Round "2"]
[White "Menon, Gauri"]
[Black "Wagner, Margarethe"]
[Result "1/2-1/2"]
[ECO "A05"]
[WhiteElo "1592"]
[BlackElo "1766"]
[Annotator "NA RC"]
[PlyCount "109"]
[EventDate "2018.11.04"]
[EventType "swiss"]
[EventCountry "ESP"]
[SourceTitle "playchess.com"]
[Source "ChessBase"]
[SourceQuality "1"]
[TimeControl "40/5400+30:1800+30"]

1. Nf3 {[%emt 0:00:00]} Nf6 {[%emt 0:00:00]} 2. g3 {[%emt 0:00:00]} e6 {[%emt 0:00:52]} 3. Bg2 {[%emt 0:00:26]} d5 {[%emt 0:01:38]} 4. d4 {[%emt 0:00:38]} Nbd7 {[%emt 0:03:00]} 5. Nbd2 {[%emt 0:03:46]} c5 {[%emt 0:03:48]} 6. c4 {[%emt 0:03:26]} cxd4 {[%emt 0:05:21]} 7. Nxd4 {[%emt 0:05:44]} e5 {[%emt 0:05:06]} 8. N4b3 {[%emt 0:03:09]} d4 {[%emt 0:06:46]} 9. Ne4 {[%emt 0:11:22]} Qc7 {[%emt 0:04:12]} 10. Nxf6+ {[%emt 0:06:43]} Nxf6 {[%emt 0:00:18]} 11. Qd3 {[%emt 0:00:27]} Be6 {[%emt 0:01:52]} 12. Nd2 {[%emt 0:03:35]} Bb4 {[%emt 0:03:24]} 13. b3 {[%emt 0:06:31]} Bc3 {[%emt 0:01:50]} 14. Rb1 {[%emt 0:00:08]} Qd7 {[%emt 0:02:20]} 15. O-O {[%emt 0:03:02]} Bf5 {[%emt 0:04:31]} 16. Ne4 {[%emt 0:01:26]} O-O {[%emt 0:01:51]} 17. Nxf6+ {[%emt 0:04:25]} gxf6 {[%emt 0:00:07]} 18. Be4 {[%emt 0:00:14]} Bg6 {[%emt 0:03:22]} 19. Bh6 {[%emt 0:02:27]} f5 {[%emt 0:02:20]} 20. Qf3 {[%emt 0:09:41]} Rfb8 {[%emt 0:06:33]} 21. g4 {[%emt 0:03:49]} f4 {[%emt 0:04:39]} 22. Kh1 {[%emt 0:01:42]} Qe7 {[%emt 0:04:02]} 23. g5 {[%emt 0:02:08]} Qd7 {[%emt 0:03:05]} 24. Rg1 {[%emt 0:04:08]} Bb4 {[%emt 0:03:19]} 25. Rbd1 {[%emt 0:02:05]} a5 {[%emt 0:04:02]} 26. e3 {[%emt 0:02:54]} fxe3 {[%emt 0:07:37]} 27. fxe3 {[%emt 0:00:28]} Be7 {[%emt 0:01:49]} 28. exd4 {[%emt 0:02:57]} exd4 {[%emt 0:00:19]} 29. Rgf1 {[%emt 0:00:36]} Ra6 {[%emt 0:02:43]} 30. Bxg6 {[%emt 0:03:02]} Rxg6 {[%emt 0:00:26]} 31. Qxf7+ {[%emt 0:00:08]} Kh8 {[%emt 0:00:10]} 32. Qf4 {[%emt 0:01:24]} Qc6+ {[%emt 0:02:00]} 33. Kg1 {[%emt 0:02:39]} Re8 {[%emt 0:03:01]} 34. Qxd4+ {[%emt 0:03:13]} Kg8 {[%emt 0:00:16]} 35. Qd5+ {[%emt 0:00:13]} Qxd5 {[%emt 0:00:37]} 36. Rxd5 {[%emt 0:00:10]} Bb4 {[%emt 0:01:28]} 37. Rd7 {[%emt 0:01:49]} Bc5+ {[%emt 0:02:14]} 38. Kh1 {[%emt 0:00:27]} b6 {[%emt 0:01:43]} 39. h4 {[%emt 0:02:26]} Rge6 {[%emt 0:00:52]} 40. Rg7+ {[%emt 0:00:00]} Kh8 {[%emt 0:00:00]} 41. Rgf7 {[%emt 0:10:59]} Re4 {[%emt 0:03:00]} 42. R7f4 {[%emt 0:01:36]} Re2 {[%emt 0:00:45]} 43. Bf8 {[%emt 0:01:02]} Rxa2 {[%emt 0:02:44]} 44. Bxc5 {[%emt 0:01:02]} bxc5 {[%emt 0:00:15]} 45. Rf8+ {[%emt 0:01:52]} Rxf8 {[%emt 0:00:08]} 46. Rxf8+ {[%emt 0:00:06]} Kg7 {[%emt 0:00:10]} 47. Rc8 {[%emt 0:01:00]} Rb2 {[%emt 0:01:24]} 48. Rxc5 {[%emt 0:04:28]} Rxb3 {[%emt 0:00:24]} 49. Rxa5 {[%emt 0:02:49]} Rh3+ {[%emt 0:00:21]} 50. Kg2 {[%emt 0:00:08]} Rxh4 {[%emt 0:00:32]} 51. Rc5 {[%emt 0:00:21]} Kg6 {[%emt 0:01:05]} 52. Kg3 {[%emt 0:01:53]} Rd4 {[%emt 0:00:38]} 53. Kf3 {[%emt 0:00:57]} Rh4 {[%emt 0:03:35]} 54. Kg3 {[%emt 0:03:52]} Rd4 {[%emt 0:00:27]} 55. Kf3 {[%emt 0:00:37]} 1/2-1/2

[Event "FIDE WCCC G12 2018"]
[Site "Santiago de Compostela"]
[Date "2018.11.05"]
[Round "2"]
[White "Toth, Manoush"]
[Black "Dakic, Marta"]
[Result "0-1"]
[ECO "C41"]
[WhiteElo "1576"]
[BlackElo "1756"]
[Annotator "NA RC"]
[PlyCount "48"]
[EventDate "2018.11.04"]
[EventType "swiss"]
[EventCountry "ESP"]
[SourceTitle "playchess.com"]
[Source "ChessBase"]
[SourceQuality "1"]
[TimeControl "40/5400+30:1800+30"]

1. e4 {[%emt 0:00:00]} e5 {[%emt 0:00:00]} 2. Nf3 {[%emt 0:00:00]} d6 {[%emt 0:00:00]} 3. d4 {[%emt 0:00:00]} exd4 {[%emt 0:00:09]} 4. Nxd4 {[%emt 0:00:05]} Nf6 {[%emt 0:00:19]} 5. Nc3 {[%emt 0:00:13]} Be7 {[%emt 0:00:31]} 6. Be2 {[%emt 0:00:43]} O-O {[%emt 0:00:41]} 7. O-O {[%emt 0:00:29]} Re8 {[%emt 0:01:35]} 8. Kh1 {[%emt 0:01:07]} c6 {[%emt 0:01:30]} 9. Bg5 {[%emt 0:04:12]} Nxe4 {[%emt 0:06:42]} 10. Nxe4 {[%emt 0:08:31]} Bxg5 {[%emt 0:00:31]} 11. Nxg5 {[%emt 0:04:57]} Qxg5 {[%emt 0:00:09]} 12. Nf3 {[%emt 0:00:52]} Qf6 {[%emt 0:02:08]} 13. c3 {[%emt 0:04:58]} Nd7 {[%emt 0:05:54]} 14. Re1 {[%emt 0:05:07]} Ne5 {[%emt 0:07:19]} 15. Bc4 {[%emt 0:09:13]} Bg4 {[%emt 0:03:27]} 16. Be2 {[%emt 0:04:05]} Nxf3 {[%emt 0:01:22]} 17. Bxf3 {[%emt 0:09:12]} Rxe1+ {[%emt 0:00:12]} 18. Qxe1 {[%emt 0:00:07]} Bxf3 {[%emt 0:00:06]} 19. gxf3 {[%emt 0:00:05]} Qxf3+ {[%emt 0:00:05]} 20. Kg1 {[%emt 0:00:09]} Kf8 {[%emt 0:06:09]} 21. Rd1 {[%emt 0:03:42]} Re8 {[%emt 0:00:47]} 22. Qd2 {[%emt 0:03:49]} Re6 {[%emt 0:01:16]} 23. Qd4 {[%emt 0:10:53]} c5 {[%emt 0:08:42]} 24. Qd5 {[%emt 0:03:33]} Re1+ {[%emt 0:00:15] Rd3 Re2} 0-1

[Event "FIDE WCCC G12 2018"]
[Site "Santiago de Compostela"]
[Date "2018.11.05"]
[Round "2"]
[White "Mellor, Jessica"]
[Black "Mihelic, Vesna"]
[Result "0-1"]
[ECO "C54"]
[WhiteElo "1555"]
[BlackElo "1741"]
[Annotator "NA RC"]
[PlyCount "88"]
[EventDate "2018.11.04"]
[EventType "swiss"]
[EventCountry "ESP"]
[SourceTitle "playchess.com"]
[Source "ChessBase"]
[SourceQuality "1"]
[TimeControl "40/5400+30:1800+30"]

1. e4 {[%emt 0:00:00]} e5 {[%emt 0:00:00]} 2. Nf3 {[%emt 0:00:00]} Nc6 {[%emt 0:00:00]} 3. Bc4 {[%emt 0:00:22]} Bc5 {[%emt 0:00:18]} 4. c3 {[%emt 0:00:43]} Nf6 {[%emt 0:00:19]} 5. d3 {[%emt 0:00:38]} a6 {[%emt 0:00:34]} 6. d4 {[%emt 0:00:39]} exd4 {[%emt 0:00:53]} 7. cxd4 {[%emt 0:00:22]} Bb4+ {[%emt 0:00:32]} 8. Bd2 {[%emt 0:00:23]} Nxe4 {[%emt 0:02:48]} 9. Bxb4 {[%emt 0:01:09]} Nxb4 {[%emt 0:00:18]} 10. Bxf7+ {[%emt 0:00:27]} Kxf7 {[%emt 0:00:17]} 11. Qb3+ {[%emt 0:00:12]} Kf8 {[%emt 0:00:34]} 12. Qxb4+ {[%emt 0:00:18]} Qe7 {[%emt 0:00:22]} 13. Qxe7+ {[%emt 0:00:13]} Kxe7 {[%emt 0:00:10]} 14. Nc3 {[%emt 0:00:18]} Nxc3 {[%emt 0:02:40]} 15. bxc3 {[%emt 0:00:08]} d6 {[%emt 0:01:35]} 16. Kd2 {[%emt 0:01:02]} Be6 {[%emt 0:02:44]} 17. Rhe1 {[%emt 0:00:59]} Kd7 {[%emt 0:00:28]} 18. Re3 {[%emt 0:09:46]} Rae8 {[%emt 0:03:16]} 19. a3 {[%emt 0:03:00]} Rhf8 {[%emt 0:02:08]} 20. Rae1 {[%emt 0:09:57]} h6 {[%emt 0:06:24]} 21. Ke2 {[%emt 0:08:26]} Bg4 {[%emt 0:04:16]} 22. h3 {[%emt 0:09:17]} Bxf3+ {[%emt 0:02:36]} 23. gxf3 {[%emt 0:03:26]} Rf7 {[%emt 0:02:24]} 24. Rxe8 {[%emt 0:05:48]} Kxe8 {[%emt 0:00:09]} 25. Kd3+ {[%emt 0:02:59]} Kd7 {[%emt 0:01:07]} 26. Re3 {[%emt 0:01:02]} Rf4 {[%emt 0:00:25]} 27. Ke2 {[%emt 0:04:31]} Rh4 {[%emt 0:00:25]} 28. f4 {[%emt 0:00:52]} Rxf4 {[%emt 0:00:10]} 29. Rg3 {[%emt 0:02:19]} g5 {[%emt 0:00:42]} 30. Rf3 {[%emt 0:11:15]} Ke6 {[%emt 0:02:21]} 31. Re3+ {[%emt 0:01:47]} Kd5 {[%emt 0:00:46]} 32. Re7 {[%emt 0:04:56]} Re4+ {[%emt 0:00:12]} 33. Rxe4 {[%emt 0:00:20]} Kxe4 {[%emt 0:00:07]} 34. f3+ {[%emt 0:00:21]} Kf4 {[%emt 0:00:06]} 35. Kf2 {[%emt 0:00:35]} c5 {[%emt 0:00:10]} 36. dxc5 {[%emt 0:00:29]} dxc5 {[%emt 0:00:10]} 37. a4 {[%emt 0:00:18]} b5 {[%emt 0:00:09]} 38. axb5 {[%emt 0:00:31]} axb5 {[%emt 0:00:07]} 39. Ke2 {[%emt 0:00:18]} b4 {[%emt 0:00:11]} 40. c4 {[%emt 0:00:00]} h5 {[%emt 0:00:00]} 41. h4 {[%emt 0:00:34]} gxh4 {[%emt 0:00:26]} 42. Kf2 {[%emt 0:00:09]} b3 {[%emt 0:00:05]} 43. Kg2 {[%emt 0:00:07]} b2 {[%emt 0:00:06]} 44. Kh1 {[%emt 0:00:28]} Kg3 {[%emt 0:00:10]} 0-1